bitfinex-derivatives/quotes_SOLF0:USTF0_20241017
["timestamp","ask_amount","ask_price","bid_price","bid_amount"]
[1729199613297,3.3331,150.04,150.02,3.3333]
[1729199614802,150.03772694,150.06,150.05,3.3327]
[1729199615100,150.03772694,150.06,150.01,3.33511148]
[1729199615295,3.3327,150.05,150.02,3.3332]
[1729199616992,150.03772694,150.06,150.02,3.3332]
[1729199617193,3.3329,150.04,150.02,3.3332]
[1729199625300,145.39772694,150.06,149.98,4.64]
[1729199625801,3.3335,150.02,149.99,6.74503514]
[1729199626194,3.3335,150.02,149.99,3.41123514]
[1729199627412,3.3335,150.02,150.0,3.3338]
[1729199627717,3.3335,150.02,149.98,4.64]
[1729199628204,3.3335,150.02,149.98,7.9737777]
[1729199628509,3.3335,150.02,149.99,3.334]
[1729199634612,4.64,150.04,149.99,3.334]
[1729199634812,3.3336,150.01,149.99,3.334]
[1729199640215,3.3332,150.03,150.01,3.3336]
[1729199641309,3.3332,150.03,150.0,3.3337]
[1729199642620,4.64,150.04,150.0,3.3337]
[1729199642820,3.3334,150.02,150.0,3.3337]
[1729199643722,3.3333,150.03,150.0,3.3337]
[1729199646921,4.64,150.04,150.0,3.3337]
[1729199647122,3.3334,150.02,150.0,3.3337]
[1729199656132,4.64,150.04,149.97,6.0119]
[1729199656332,3.3339,150.0,149.98,3.3341]
[1729199665155,4.64,150.04,149.96,2.8777]
[1729199665461,4.64,150.04,149.96,4.7499]
[1729199665957,3.3342,149.99,149.96,4.7499]
[1729199668459,4.64,150.01,149.96,4.7499]
[1729199668460,4.64,150.01,149.96,1.4152]
[1729199668761,7.9736,150.01,149.98,3.3341]
[1729199672661,7.9736,150.01,149.99,3.3339]
[1729199672954,3.3336,150.01,149.99,3.3339]
[1729199675359,3.3336,150.01,149.98,3.3342]
[1729199679556,3.3336,150.01,149.99,3.3339]
[1729199679858,3.3334,150.02,149.96,1.4152]
[1729199680059,4.64,150.03,150.0,3.3336]
[1729199680463,7.9733,150.03,150.0,3.3336]
[1729199681157,4.64,150.03,150.0,3.3336]
[1729199681468,3.3334,150.02,150.0,3.3336]
[1729199685666,3.3331,150.04,150.01,3.3336]
[1729199685875,145.40860273,150.05,149.97,6.0009]
[1729199686173,3.3329,150.04,150.02,3.3333]
[1729199689569,145.40860273,150.05,149.97,1.3609]
[1729199690879,3.3334,150.02,149.99,3.3339]
[1729199691068,3.3334,150.02,149.97,1.3609]
[1729199691572,3.3334,150.02,149.97,6.0009]
[1729199693269,3.3334,150.02,149.99,3.3338]
[1729199695371,3.3337,150.01,149.98,3.3341]
[1729199701682,4.64,150.04,149.97,6.0009]
[1729199701882,4.64,150.04,149.96,1.4152]
[1729199702078,4.64,150.04,149.95,4.80292817]
[1729199702079,6.0339,150.04,149.95,8.03002817]
[1729199702278,7.035,150.04,149.95,3.39002817]
[1729199703187,3.3343,149.98,149.95,6.72472817]
[1729199703880,4.64,150.01,149.92,7.494]
[1729199704081,4.64,150.01,149.93,3.3352]
[1729199704287,4.64,150.01,149.92,2.854]
[1729199704585,3.335,149.95,149.92,1.4849]
[1729199704781,3.335,149.95,149.92,4.8203]
[1729199707488,3.3355,149.93,149.9,3.3359]
[1729199708686,4.64,149.95,149.88,1.4657]
[1729199710194,3.3359,149.91,149.88,3.3363]
[1729199713179,4.64,149.95,149.87,1.3742]
[1729199713384,3.3357,149.92,149.89,3.3362]
[1729199714193,4.64,149.95,149.87,1.3742]
[1729199714388,3.3359,149.91,149.88,3.3363]
[1729199714588,4.64,149.95,149.88,3.3363]
[1729199715994,3.3359,149.91,149.88,3.3363]
[1729199718998,4.64,149.95,149.87,1.3742]
[1729199719200,3.3362,149.89,149.85,144.46030043]
[1729199719595,3.3362,149.89,149.86,3.40852178]
[1729199719792,3.3362,149.89,149.87,3.3367]
[1729199719991,3.3362,149.89,149.85,139.82030043]
[1729199720291,3.3366,149.88,149.85,3.337]
[1729199720498,3.3366,149.88,149.85,6.62638496]
[1729199720695,3.3366,149.88,149.85,3.28938496]
[1729199720900,4.64,149.92,149.85,3.28938496]
[1729199721498,3.3363,149.89,149.86,3.3368]
[1729199721994,3.3361,149.9,149.86,3.3368]
[1729199727003,3.3364,149.89,149.85,3.337]
[1729199727204,3.3364,149.89,149.84,3.27826131]
[1729199727799,3.3364,149.89,149.86,3.3368]
[1729199729001,3.3364,149.89,149.84,3.27826131]
[1729199729002,3.3361,149.9,149.87,3.3367]
[1729199731208,2.3591,149.96,149.84,3.27826131]
[1729199731403,4.64,149.95,149.85,4.64]
[1729199731606,4.64,149.95,149.85,7.92938984]
[1729199732411,3.3353,149.93,149.9,3.3359]
[1729199736311,4.64,149.94,149.85,7.92938984]
[1729199736513,4.64,149.94,149.92,3.3355]
[1729199737300,4.64,149.94,149.85,7.92938984]
[1729199737301,4.64,149.95,149.85,7.92938984]
[1729199737497,3.3351,149.94,149.91,3.3357]
[1729199745116,74.5485,150.0,149.85,7.92938984]
[1729199745416,3.3348,149.96,149.93,3.3353]
[1729199745601,7.9748,149.96,149.93,3.3353]
[1729199760336,3.3349,149.95,149.93,3.3353]
[1729199763040,3.3345,149.97,149.95,3.3348]
[1729199763538,3.3345,149.97,149.93,3.25304393]
[1729199763737,3.3345,149.97,149.94,3.335]
[1729199768043,4.64,149.98,149.89,4.1484]
[1729199768246,3.335,149.95,149.92,3.3354]
[1729199769741,3.3353,149.94,149.89,8.7884]
[1729199770840,7.975,149.95,149.92,3.3355]
[1729199774445,7.975,149.95,149.89,8.7884]
[1729199774846,7.975,149.95,149.92,3.3354]
[1729199778560,4.64,149.95,149.91,3.3356]
[1729199778757,4.64,149.95,149.87,89.52143573]
[1729199779065,4.64,149.95,149.81,4.1624]
[1729199779259,3.3362,149.9,149.87,3.3366]
[1729199779460,4.64,149.91,149.85,3.28439815]
[1729199779663,4.64,149.91,149.83,4.64]
[1729199779873,3.3365,149.88,149.85,3.337]
[1729199780256,4.64,149.91,149.84,3.3848252]
[1729199780556,3.3363,149.89,149.86,3.3367]
[1729199785666,3.3363,149.89,149.87,3.3366]
[1729199788467,4.64,149.91,149.85,3.35602642]
[1729199788666,3.3365,149.88,149.82,4.64]
[1729199788863,3.3365,149.88,149.83,3.38539499]
[1729199789070,3.3367,149.87,149.85,3.337]
[1729199789764,7.9766,149.88,149.85,3.337]
[1729199806373,3.3368,149.87,149.85,3.3371]
[1729199806570,4.64,149.88,149.85,3.3371]
[1729199807182,4.64,149.88,149.84,3.31330686]
[1729199807490,4.64,149.88,149.81,91.81235745]
[1729199807987,3.3368,149.87,149.84,3.3372]
[1729199808975,4.64,149.88,149.86,3.3367]
[1729199809180,4.64,149.89,149.86,3.3367]
[1729199809385,4.64,149.9,149.86,3.3367]
[1729199810089,3.3363,149.89,149.86,3.3367]
[1729199810583,4.64,149.9,149.86,3.3367]
[1729199810786,3.3365,149.88,149.86,3.3367]
[1729199810987,4.64,149.9,149.81,95.08916864]
[1729199811495,3.3364,149.89,149.86,3.3368]
[1729199814788,4.64,149.9,149.81,95.08916864]
[1729199815089,4.64,149.91,149.88,3.3364]
[1729199815592,4.64,149.91,149.89,3.3361]
[1729199815793,4.64,149.91,149.85,2.8818]
[1729199815994,7.9759,149.91,149.88,3.3363]
[1729199821786,4.64,149.91,149.89,3.3362]
[1729199821983,4.64,149.93,149.86,1.4049]
[1729199822496,7.9755,149.93,149.9,3.3359]
[1729199826101,7.9755,149.93,149.86,1.4049]
[1729199826297,7.9755,149.93,149.91,3.3358]
[1729199827397,2.4804,149.99,149.9,3.41486941]
[1729199827600,4.64,149.98,149.88,4.64]
[1729199827998,3.3347,149.96,149.93,3.3352]
[1729199828500,7.9744,149.98,149.95,3.3348]
[1729199830192,3.3339,150.0,149.94,4.64]
[1729199830898,3.3339,150.0,149.97,3.3343]
[1729199831298,3.3344,149.98,149.94,4.64]
[1729199831908,3.3344,149.98,149.95,3.3348]
[1729199833797,4.64,150.02,149.93,1.3737]
[1729199833995,3.3346,149.97,149.94,3.335]
[1729199846016,6.1197,150.02,149.93,1.3737]
[1729199846216,136.88039849,150.03,149.93,1.3737]
[1729199846422,4.64,150.02,149.93,1.3737]
[1729199846616,3.3338,150.0,149.95,3.3347]
[1729199846918,3.3338,150.0,149.95,4.64]
[1729199847313,3.3338,150.0,149.97,3.3343]
[1729199853926,3.3338,150.0,149.96,3.3346]
[1729199854123,3.3336,150.02,149.95,4.64]
[1729199854424,135.41189849,150.03,149.95,4.64]
[1729199854616,138.74509849,150.03,150.0,3.3337]
[1729199857624,135.41189849,150.03,149.98,4.64]
[1729199857828,3.3336,150.01,149.98,7.9741]
[1729199860728,3.3334,150.02,149.98,4.64]
[1729199860926,135.41189849,150.03,149.98,4.64]
[1729199861322,138.74519849,150.03,149.99,3.3339]
[1729199861823,135.41189849,150.03,149.99,3.3339]
[1729199862023,3.3334,150.02,149.99,3.3339]
[1729199879730,1.0016,150.07,149.98,4.64]
[1729199879731,4.62,150.07,150.01,3.3334]
[1729199880132,4.62,150.08,150.01,6.65105686]
[1729199880736,3.333,150.04,150.01,6.65105686]
[1729199883743,3.333,150.04,150.01,11.27105686]
[1729199886938,3.3331,150.04,150.01,6.65105686]
[1729199887141,3.3331,150.04,150.01,11.27105686]
[1729199887343,145.39468944,150.08,150.02,3.3333]
[1729199887530,3.3327,150.05,150.02,3.3333]
[1729199892752,3.3325,150.06,150.03,3.333]
[1729199893151,3.3327,150.05,150.02,3.3332]
[1729199893552,145.39468944,150.08,150.01,7.93765686]
[1729199894146,3.3326,150.06,150.03,3.3331]
[1729199898351,3.3326,150.06,150.02,3.3332]
[1729199898542,3.3326,150.06,150.01,7.93765686]
[1729199898942,3.3326,150.06,150.03,3.3331]
[1729199899655,3.3326,150.06,150.04,3.3328]
[1729199899847,3.3323,150.07,150.04,3.3328]
[1729199912859,3.3323,150.07,150.05,3.3327]
[1729199913359,1.0,150.1,150.05,3.3327]
[1729199913555,3.3321,150.08,150.05,3.3327]
[1729199914459,3.3319,150.09,150.06,3.3324]
[1729199914656,3.3319,150.09,150.04,4.62]
[1729199915157,1.0,150.1,150.04,4.62]
[1729199915158,3.332,150.08,150.05,3.3325]
[1729199924651,1.0,150.1,150.01,92.76082919]
[1729199924854,1.0,150.1,150.03,3.333]
[1729199925566,3.3326,150.06,150.03,7.953]
[1729199929569,3.3326,150.06,150.04,3.3329]
[1729199930264,3.3321,150.08,150.06,3.3324]
[1729199931667,3.3321,150.08,150.05,3.3326]
[1729199938874,3.3321,150.08,150.06,3.3324]
[1729199957002,1.0,150.1,150.06,3.3324]
[1729199957186,3.3319,150.09,150.06,3.3324]
[1729199967903,3.332,150.08,150.06,3.3324]
[1729199987211,3.3319,150.09,150.06,3.3324]
[1729200000825,4.3316,150.1,150.08,3.332]
[1729200001218,4.3316,150.1,150.08,3.3319]
[1729200001219,1.0,150.1,150.08,3.3319]
[1729200001623,14.76992528,150.13,150.05,6.1093]
[1729200001624,14.76992528,150.13,150.09,4.62]
[1729200001924,5.62,150.2,150.12,3.3309]
[1729200002128,1.03858598,150.19,150.12,3.3309]
[1729200002520,3.3299,150.18,150.12,3.3309]
[1729200002826,5.62,150.2,150.13,3.25356627]
[1729200003129,3.3305,150.15,150.13,3.25356627]
[1729200004532,3.3315,150.11,150.08,7.9518]
[1729200004835,3.3315,150.11,150.08,4.62]
[1729200005916,3.3312,150.12,150.09,3.3318]
[1729200006119,3.3312,150.12,150.1,3.32200239]
[1729200006529,3.3312,150.12,150.08,4.62]
[1729200006725,3.3312,150.12,150.09,3.3317]
[1729200006928,3.3312,150.12,150.1,3.378991]
[1729200014435,4.62,150.17,150.1,3.378991]
[1729200014631,3.3313,150.11,150.1,3.378991]
[1729200014941,4.62,150.14,150.07,4.62]
[1729200015427,3.3317,150.1,150.07,4.62]
[1729200016637,3.3317,150.1,150.05,2.8755]
[1729200016834,4.62,150.14,150.07,3.3322]
[1729200017045,4.62,150.14,150.05,1.3862]
[1729200017336,4.62,150.14,150.06,3.3324]
[1729200017532,3.3319,150.09,150.06,3.3324]
[1729200018527,3.3313,150.12,150.1,3.3315]
[1729200018731,4.62,150.14,150.1,3.3315]
[1729200018946,4.62,150.14,150.09,3.39976676]
[1729200019125,3.331,150.13,150.1,3.3316]
[1729200019530,3.331,150.13,150.1,6.68970703]
[1729200019934,3.331,150.13,150.1,6.68960703]
[1729200020238,3.331,150.13,150.1,3.3315]
[1729200020639,3.3308,150.14,150.1,3.28845197]
[1729200020934,3.3308,150.14,150.08,4.62]
[1729200023733,3.3309,150.13,150.1,3.3314]
[1729200023935,3.3309,150.13,150.11,3.40908346]
[1729200032252,3.3309,150.13,150.11,6.74038346]
[1729200033950,3.3303,150.16,150.13,3.3308]
[1729200034953,3.3303,150.16,150.14,3.3307]
[1729200036048,3.3301,150.17,150.14,3.3307]
[1729200037955,3.3301,150.17,150.14,7.9507]
[1729200039655,1.0,150.2,150.14,4.62]
[1729200039857,3.3299,150.18,150.15,3.3303]
[1729200040355,3.3299,150.18,150.14,4.62]
[1729200040855,3.3299,150.18,150.16,3.3302]
[1729200041845,1.0,150.2,150.16,3.3302]
[1729200042151,3.3297,150.19,150.16,3.3302]
[1729200043057,1.0,150.2,150.17,3.3299]
[1729200043058,4.3295,150.2,150.17,3.3299]
[1729200045460,3.3296,150.19,150.17,3.3299]
[1729200054466,3.3296,150.19,150.16,7.9501]
[1729200059763,3.3297,150.19,150.16,3.3301]
[1729200059960,3.3297,150.19,150.16,7.9701]
[1729200060464,1.0,150.2,150.12,4.2508]
[1729200060670,1.0,150.2,150.14,3.3305]
[1729200061762,3.3297,150.19,150.14,3.3305]
[1729200061967,1.0,150.2,150.14,3.3305]
[1729200063365,3.3303,150.16,150.14,3.3305]
[1729200080981,3.3301,150.17,150.14,3.3305]
[1729200088291,3.3302,150.16,150.14,3.3305]
[1729200089596,3.3305,150.15,150.13,3.3309]
[1729200096097,3.866,150.2,150.13,3.3309]
[1729200096098,3.3303,150.16,150.13,3.3309]
[1729200109527,4.62,150.19,150.12,6.0103]
[1729200109720,3.3307,150.14,150.12,9.3413]
[1729200110524,3.3305,150.15,150.12,6.0103]
[1729200110831,14.73416968,150.19,150.06,2.9199]
[1729200111127,4.62,150.16,150.07,4.62]
[1729200111627,3.3315,150.11,150.08,3.3318]
[1729200111831,3.3315,150.11,150.09,3.30278609]
[1729200112326,3.3315,150.11,150.07,4.62]
[1729200112733,3.3315,150.11,150.08,3.332]
[1729200113228,3.3308,150.14,150.08,3.332]
[1729200113425,4.62,150.16,150.08,3.332]
[1729200113729,3.3315,150.11,150.08,3.332]
[1729200113930,4.62,150.16,150.08,3.332]
[1729200114335,4.62,150.16,150.08,3.3318]
[1729200114529,4.62,150.16,150.06,4.62]
[1729200114931,3.3313,150.12,150.09,3.3316]
[1729200118829,4.62,150.16,150.06,4.62]
[1729200120434,3.3313,150.12,150.08,3.3318]
[1729200128144,4.62,150.16,150.08,3.3318]
[1729200128345,3.3313,150.11,150.08,3.3318]
[1729200129144,3.3313,150.11,150.06,4.62]
[1729200129343,3.3313,150.11,150.09,3.3318]
[1729200154871,3.3313,150.11,150.05,2.8006]
[1729200155061,3.3313,150.11,150.08,3.3319]
[1729200161667,3.3313,150.11,150.08,7.9519]
[1729200167868,3.3313,150.11,150.09,3.34266493]
[1729200168268,3.3313,150.11,150.09,6.67446493]
[1729200189894,4.62,150.15,150.09,6.67446493]
[1729200190196,3.3312,150.12,150.09,6.67446493]
[1729200196184,3.3312,150.12,150.09,3.34266493]
[1729200196390,3.3312,150.12,150.1,3.3315]
[1729200196595,3.3312,150.12,150.08,4.62]
[1729200196987,3.3312,150.12,150.09,3.3317]
[1729200197298,3.3312,150.12,150.08,4.62]
[1729200198499,3.3312,150.12,150.09,3.3317]
[1729200202602,3.3313,150.11,150.09,3.3317]
[1729200218827,4.62,150.15,150.09,3.3317]
[1729200219027,3.3312,150.12,150.09,3.3317]
[1729200226530,3.3312,150.12,150.09,6.65792325]
[1729200229732,3.3302,150.17,150.13,3.3307]
[1729200229933,14.73416968,150.19,150.11,4.62]
[1729200230333,5.62,150.2,150.11,4.62]
[1729200230834,3.3299,150.18,150.15,3.3303]
[1729200242045,1.0,150.2,150.14,4.6]
[1729200242245,1.0,150.2,150.19,3.3296]
[1729200243046,1.0,150.2,150.19,6.64227945]
[1729200243446,3.3283,150.25,150.22,3.3289]
[1729200243953,19.30488186,150.28,150.18,4.6]
[1729200244247,3.3282,150.26,150.22,3.3288]
[1729200245250,4.6,150.28,150.16,1.3714]
[1729200245557,1.03794925,150.27,150.18,3.3297]
[1729200245752,1.03794925,150.27,150.19,3.32034698]
[1729200245945,3.329,150.22,150.19,3.32034698]
[1729200247557,3.3292,150.21,150.19,3.32034698]
[1729200251851,3.3287,150.23,150.2,3.3292]
[1729200256266,1.0,150.3,150.19,7.92034698]
[1729200256468,3.3284,150.25,150.22,3.3289]
[1729200256658,1.0,150.3,150.19,7.92034698]
[1729200256959,3.3286,150.24,150.21,3.329]
[1729200257560,7.5478,150.29,150.19,3.32034698]
[1729200257868,3.329,150.22,150.19,4.6]
[1729200258166,3.329,150.22,150.19,7.89803595]
[1729200258366,3.329,150.22,150.19,11.22743595]
[1729200259472,3.3293,150.21,150.19,3.29803595]
[1729200259763,4.6,150.26,150.18,4.6]
[1729200260068,4.6,150.26,150.16,1.3714]
[1729200260069,1.0380934,150.25,150.17,11.2676745]
[1729200260358,4.6,150.26,150.17,6.6676745]
[1729200260560,1.03821602,150.24,150.17,11.2676745]
[1729200261359,3.3294,150.2,150.17,6.6676745]
[1729200261865,3.3296,150.19,150.16,4.7015]
[1729200262063,3.3296,150.19,150.16,9.3015]
[1729200262564,3.3298,150.18,150.16,1.3714]
[1729200267066,3.3298,150.18,150.16,4.7016]
[1729200270273,3.3298,150.18,150.15,10.7727]
[1729200270657,3.3298,150.18,150.15,7.4423]
[1729200270863,3.3298,150.18,150.16,3.3302]
[1729200271070,3.3292,150.21,150.15,7.4423]
[1729200271258,3.3292,150.21,150.18,3.3297]
[1729200271465,3.3292,150.21,150.18,6.64793508]
[1729200271658,3.3292,150.21,150.18,3.31823508]
[1729200271863,3.3292,150.21,150.19,3.3295]
[1729200275874,3.3292,150.21,150.18,6.67857621]
[1729200276174,3.3292,150.21,150.18,11.27857621]
[1729200276777,4.6,150.25,150.18,11.27857621]
[1729200276976,3.3295,150.2,150.18,11.27857621]
[1729200284884,3.3295,150.2,150.18,6.67857621]
[1729200288082,3.3291,150.22,150.19,3.3296]
[1729200288594,3.3286,150.24,150.19,3.3296]
[1729200288794,4.6,150.25,150.19,3.3296]
[1729200289095,3.329,150.22,150.19,3.3296]
[1729200289787,3.3292,150.21,150.18,6.67857621]
[1729200289988,3.3292,150.21,150.18,11.27857621]
[1729200299803,3.3293,150.2,150.18,11.27857621]
[1729200300308,3.3293,150.2,150.15,2.8423]
[1729200300309,3.3299,150.18,150.15,3.3303]
[1729200300603,4.6,150.17,149.99,13.3353]
[1729200300804,3.3313,150.11,150.08,3.332]
[1729200300997,4.6,150.11,150.07,3.3697468]
[1729200301313,3.3315,150.11,150.08,3.332]
[1729200301495,3.3315,150.11,150.09,3.25318114]
[1729200305517,3.3313,150.11,150.09,3.25318114]
[1729200305818,3.3313,150.11,150.07,3.3322]
[1729200306318,3.3313,150.11,150.07,6.64076141]
[1729200308011,3.3313,150.11,150.07,3.30856141]
[1729200308216,3.3313,150.11,150.08,3.3318]
[1729200308417,3.3313,150.11,150.09,3.37355028]
[1729200308922,4.6,150.12,150.09,3.37355028]
[1729200309118,7.9312,150.12,150.09,3.37355028]
[1729200309721,3.3314,150.11,150.09,3.37355028]
[1729200310024,2.8125,150.16,150.09,6.70515028]
[1729200310225,3.3311,150.13,150.09,3.3316]
[1729200310817,3.3311,150.13,150.09,6.66082285]
[1729200312621,4.6,150.15,150.09,6.66082285]
[1729200312818,3.3312,150.12,150.09,6.66082285]
[1729200314321,6.6582,150.22,150.09,3.32922285]
[1729200314619,3.3308,150.14,150.11,3.3312]
[1729200326926,3.3306,150.15,150.12,3.331]
[1729200328026,1.441,150.21,150.08,7.92655863]
[1729200328340,3.3303,150.16,150.08,7.92655863]
[1729200328833,3.3303,150.16,150.13,3.3307]
[1729200340243,4.64,150.2,150.12,1.4438]
[1729200340441,4.64,150.2,150.13,1.3702]
[1729200340642,3.3302,150.17,150.14,3.3305]
[1729200347854,3.3299,150.18,150.14,3.3305]
[1729200348047,4.64,150.19,150.14,3.3305]
[1729200349148,3.3302,150.17,150.14,3.3305]
[1729200352156,3.3304,150.16,150.13,4.7011]
[1729200356658,4.64,150.19,150.13,4.7011]
[1729200356859,3.3305,150.15,150.13,4.7011]
[1729200359367,4.64,150.19,150.13,4.7011]
[1729200359557,3.3303,150.16,150.14,3.3306]
[1729200374475,3.3303,150.16,150.13,1.3702]
[1729200374476,3.3303,150.16,150.13,4.701]
[1729200383884,3.3305,150.15,150.13,4.7011]
[1729200384778,3.3305,150.15,150.13,1.3702]
[1729200384979,3.3305,150.15,150.13,4.701]
[1729200385876,3.3305,150.15,150.13,1.3702]
[1729200390486,3.3307,150.14,150.13,1.3702]
[1729200391392,4.6,150.19,150.13,1.3702]
[1729200391580,3.3306,150.15,150.13,1.3702]
[1729200394080,3.3308,150.14,150.12,4.7749]
[1729200394387,4.6,150.19,150.11,4.64]
[1729200394601,3.3309,150.14,150.11,7.9713]
[1729200396286,3.331,150.13,150.1,3.3315]
[1729200396486,4.6,150.16,150.1,3.3315]
[1729200397083,3.3311,150.12,150.11,3.41451262]
[1729200397288,19.27691644,150.22,150.13,3.3308]
[1729200397488,1.03840578,150.21,150.13,3.3308]
[1729200397987,6.0456,150.22,150.13,3.3308]
[1729200398298,3.3305,150.15,150.13,3.3308]
[1729200412705,3.3304,150.16,150.13,3.3308]
[1729200415205,3.3305,150.15,150.13,3.3308]
[1729200420501,4.6,150.19,150.09,3.34255099]
[1729200420502,3.3308,150.14,150.11,7.9312]
[1729200420907,4.6,150.19,150.11,3.25082471]
[1729200421109,4.6,150.19,150.06,4.18]
[1729200421110,3.3312,150.12,150.09,3.3317]
[1729200421310,3.3312,150.12,150.1,3.37087276]
[1729200422712,3.3308,150.14,150.1,3.37087276]
[1729200422911,4.6,150.15,150.1,3.37087276]
[1729200423804,3.3313,150.11,150.1,3.37087276]
[1729200424409,3.3313,150.11,150.08,3.3319]
[1729200424716,3.3313,150.11,150.09,3.38719902]
[1729200433505,3.3317,150.1,150.07,3.3322]
[1729200433709,4.6,150.15,150.06,4.6]
[1729200434116,3.3319,150.09,150.07,3.36288207]
[1729200434319,4.6,150.15,150.06,7.9323]
[1729200434518,4.6,150.15,150.02,4.1174]
[1729200434811,3.3324,150.07,150.04,3.3328]
[1729200435214,4.6,150.1,149.97,72.96]
[1729200435410,4.6,150.1,150.02,3.3332]
[1729200435617,4.3128,150.09,150.03,3.35021836]
[1729200435918,4.3128,150.09,149.99,3.3339]
[1729200435919,3.3335,150.02,149.99,3.3339]
[1729200436417,3.3335,150.02,150.0,3.41153738]
[1729200436607,3.3335,150.02,149.98,3.3341]
[1729200436813,3.3335,150.02,149.98,6.69031696]
[1729200437116,3.3335,150.02,149.98,3.3341]
[1729200437515,3.3335,150.02,149.98,6.62641666]
[1729200438819,3.3335,150.02,149.99,3.334]
[1729200444929,3.3325,150.06,150.0,3.3336]
[1729200445124,4.6,150.05,150.0,3.3336]
[1729200445913,3.3331,150.03,150.0,3.3336]
[1729200448729,20.0,150.16,150.01,4.62]
[1729200449025,280.06,150.43,150.02,2.836]
[1729200449026,2.9406,150.15,150.02,2.836]
[1729200449332,3.3309,150.14,150.02,2.836]
[1729200449625,1.3982,150.17,150.02,2.836]
[1729200449833,4.62,150.19,150.02,2.836]
[1729200450132,3.3302,150.17,150.12,3.331]
[1729200450637,3.3304,150.16,150.11,7.9513]
[1729200450823,4.62,150.19,150.11,4.62]
[1729200451335,4.62,150.19,150.1,3.3315]
[1729200451627,3.3306,150.15,150.1,6.58408268]
[1729200453334,3.3306,150.15,150.11,3.3313]
[1729200455527,4.62,150.19,150.1,3.25258268]
[1729200455729,4.62,150.19,150.12,3.331]
[1729200456736,3.3303,150.16,150.12,3.331]
[1729200462733,3.3303,150.16,150.1,7.85258268]
[1729200462944,3.3303,150.16,150.13,3.3309]
[1729200463440,3.3305,150.15,150.12,3.3311]
[1729200480758,3.3307,150.14,150.12,3.3311]
[1729200481148,4.8,150.15,150.08,3.3318]
[1729200481348,3.3312,150.12,150.08,3.40429802]
[1729200481548,3.3312,150.12,150.06,4.8]
[1729200482058,3.3312,150.12,150.06,8.15765467]
[1729200482550,3.3314,150.11,150.06,8.15765467]
[1729200482948,3.3314,150.11,150.08,3.3318]
[1729200484249,3.3314,150.11,150.09,3.3317]
[1729200490965,3.3312,150.12,150.09,3.3317]
[1729200495865,4.8,150.15,150.07,3.3321]
[1729200496064,4.8,150.15,150.06,3.35765467]
[1729200496258,4.8,150.15,150.05,4.8]
[1729200496663,3.3317,150.1,150.05,3.3325]
[1729200496859,3.3317,150.1,150.06,3.38542546]
[1729200497060,3.3317,150.1,150.04,4.8]
[1729200499263,3.3317,150.1,150.08,3.332]
[1729200503173,3.3317,150.1,150.07,3.3321]
[1729200504274,3.3317,150.1,150.06,3.37577499]
[1729200504469,3.3317,150.1,150.08,3.332]
[1729200507081,3.3318,150.09,150.07,3.3322]
[1729200508778,3.3317,150.1,150.07,3.3322]
[1729200510583,3.332,150.09,150.06,3.3324]
[1729200511079,3.3324,150.07,150.04,3.3327]
[1729200511272,3.3324,150.07,150.02,2.836]
[1729200511273,4.72,150.09,150.02,2.836]
[1729200511672,3.3323,150.07,150.04,3.3329]
[1729200511982,4.72,150.09,150.04,3.3329]